fUST/lending_fUST_20251214
["ID","MTS","AMOUNT","RATE_DAILY","PERIOD"]
[398472759,1765710632903,-1147.26701987,0.00017643,2]
[398472760,1765710632913,-500.0,0.00017643,2]
[398472761,1765710632922,-1147.26701987,0.00017643,2]
[398472762,1765710632932,-500.0,0.00017643,2]
[398472763,1765710632942,-1147.26701987,0.00017643,2]
[398472764,1765710632951,-500.0,0.00017643,2]
[398472765,1765710632960,-1147.26701987,0.00017643,2]
[398472766,1765710632970,-500.0,0.00017643,2]
[398472767,1765710632979,-1147.26701987,0.00017643,2]
[398472768,1765710632988,-1147.26701987,0.00017643,2]
[398472769,1765710632997,-500.0,0.00017643,2]
[398472770,1765710633007,-1147.26701987,0.00017643,2]
[398472771,1765710633017,-500.0,0.00017643,2]
[398472772,1765710633026,-500.0,0.00017643,2]
[398472773,1765710633035,-1147.26701987,0.00017643,2]
[398472774,1765710633045,-1147.26701987,0.00017643,2]
[398472775,1765710633055,-500.0,0.00017643,2]
[398472776,1765710633065,-1147.26701987,0.00017643,2]
[398472777,1765710633075,-500.0,0.00017643,2]
[398472778,1765710633084,-1147.26701987,0.00017643,2]
[398472779,1765710633094,-500.0,0.00017643,2]
[398472780,1765710633104,-1147.26701987,0.00017643,2]
[398472781,1765710633114,-500.0,0.00017643,2]
[398472782,1765710633124,-1147.26701987,0.00017643,2]
[398472783,1765710633134,-500.0,0.00017643,2]
[398472784,1765710633143,-1147.26701987,0.00017643,2]
[398472785,1765710633153,-1147.26701987,0.00017643,2]
[398472786,1765710633165,-500.0,0.00017643,2]
[398472787,1765710633175,-1147.26701987,0.00017643,2]
[398472788,1765710633184,-475.84126953,0.00017643,2]
[398472789,1765710633193,-1147.26701987,0.00017643,2]
[398472790,1765710633202,-1147.26701987,0.00017643,2]
[398472791,1765710633213,-1147.26701987,0.00017643,2]
[398472792,1765710633223,-1147.26701987,0.00017643,2]
[398472793,1765710633232,-1147.26701987,0.00017643,2]
[398472794,1765710633242,-1147.26701987,0.00017643,2]
[398472795,1765710633252,-1147.26701987,0.00017643,2]
[398472796,1765710633262,-1147.26701987,0.00017643,2]
[398472797,1765710633271,-1147.26701987,0.00017643,2]
[398472798,1765710633281,-1147.26701987,0.00017643,2]
[398472799,1765710633290,-1147.26701987,0.00017643,2]
[398472800,1765710633300,-1147.26701987,0.00017643,2]
[398472801,1765710633309,-1147.26701987,0.00017643,2]
[398472802,1765710633319,-616.74545823,0.00017643,2]
[398472803,1765710633333,-530.52156164,0.00017643,2]
[398472804,1765710633343,-745.51843836,0.00017643,2]
[398472805,1765710633354,-401.74858151,0.00017643,2]
[398472806,1765710633365,-763.70035429,0.00017643,2]
[398472807,1765710633377,-383.56666558,0.00017643,2]
[398472808,1765710633388,-1147.26701987,0.00017643,2]
[398472809,1765710633401,-1147.26701987,0.00017643,2]
[398472810,1765710633411,-1147.26701987,0.00017643,2]
[398472811,1765710633422,-1147.26701987,0.00017643,2]
[398472812,1765710633432,-1147.26701987,0.00017643,2]
[398472813,1765710633442,-500.0,0.00017643,2]
[398472814,1765710633451,-500.0,0.00017643,2]
[398472815,1765710633461,-500.0,0.00017643,2]
[398472816,1765710633471,-500.0,0.00017643,2]
[398472817,1765710633481,-500.0,0.00017643,2]
[398472818,1765710633491,-500.0,0.00017643,2]
[398472819,1765710633500,-500.0,0.00017643,2]
[398472820,1765710633510,-500.0,0.00017643,2]
[398472821,1765710633519,-500.0,0.00017643,2]
[398472822,1765710633529,-500.0,0.00017643,2]
[398472823,1765710633538,-500.0,0.00017643,2]
[398472824,1765710633547,-500.0,0.00017643,2]
[398472825,1765710633557,-500.0,0.00017643,2]
[398472826,1765710633568,-500.0,0.00017643,2]
[398472827,1765710633578,-500.0,0.00017643,2]
[398472828,1765710633587,-500.0,0.00017643,2]
[398472829,1765710633597,-500.0,0.00017643,2]
[398472830,1765710633607,-500.0,0.00017643,2]
[398472831,1765710633617,-500.0,0.00017643,2]
[398472832,1765710633627,-500.0,0.00017643,2]
[398472833,1765710633637,-500.0,0.00017643,2]
[398472834,1765710633647,-500.0,0.00017643,2]
[398472835,1765710633657,-500.0,0.00017643,2]
[398472836,1765710633667,-500.0,0.00017643,2]
[398472837,1765710633676,-500.0,0.00017643,2]
[398472838,1765710633685,-500.0,0.00017643,2]
[398472839,1765710633695,-490.84664019,0.00017643,2]
[398472840,1765710633705,-500.0,0.00017643,2]
[398472841,1765710633714,-500.0,0.00017643,2]
[398472842,1765710633724,-500.0,0.00017643,2]
[398472843,1765710633733,-500.0,0.00017643,2]
[398472844,1765710633743,-500.0,0.00017643,2]
[398472845,1765710633752,-500.0,0.00017643,2]
[398472846,1765710633762,-500.0,0.00017643,2]
[398472847,1765710633777,-500.0,0.00017643,2]
[398472848,1765710633787,-500.0,0.00017643,2]
[398472849,1765710633797,-500.0,0.00017643,2]
[398472850,1765710633807,-500.0,0.00017643,2]
[398472851,1765710633818,-500.0,0.00017643,2]
[398472852,1765710633827,-500.0,0.00017643,2]
[398472853,1765710633838,-500.0,0.00017643,2]
[398472854,1765710633848,-500.0,0.00017643,2]
[398472855,1765710633858,-500.0,0.00017643,2]
[398472856,1765710633867,-248.59780722,0.00017643,2]
[398472874,1765710638161,-251.40219278,0.00017643,2]
[398472877,1765710638172,-500.0,0.00017643,2]
[398472879,1765710638182,-500.0,0.00017643,2]
[398472881,1765710638193,-200.00000001,0.00017643,2]
[398472883,1765710638203,-500.0,0.00017643,2]
[398472885,1765710638213,-132.86824068,0.00017643,2]
[398472886,1765710638226,-361.0402447,0.00017643,2]
[398472887,1765710638238,-360.82507419,0.00017643,2]
[398472889,1765710638250,-424.50976335,0.00017643,2]
[398472890,1765710638262,-207.97787559,0.00017643,2]
[398472891,1765710638280,-500.0,0.00017643,2]
[398472892,1765710638294,-1487.22119851,0.00017643,2]
[398472893,1765710638308,-1487.22119851,0.00017643,2]
[398472894,1765710638321,-500.0,0.00017643,2]
[398472895,1765710638333,-1487.22119851,0.00017643,2]
[398472896,1765710638344,-1487.22119851,0.00017643,2]
[398472897,1765710638356,-500.0,0.00017643,2]
[398472898,1765710638367,-1487.22119851,0.00017643,2]
[398472899,1765710638378,-1487.22119851,0.00017643,2]
[398472900,1765710638389,-1487.22119851,0.00017643,2]
[398472901,1765710638399,-1487.22119851,0.00017643,2]
[398472902,1765710638410,-1487.22119851,0.00017643,2]
[398472903,1765710638421,-1487.22119851,0.00017643,2]
[398472904,1765710638432,-1487.22119851,0.00017643,2]
[398472905,1765710638443,-1459.61896107,0.00017643,2]
[398472906,1765710638459,-27.60223744,0.00017643,2]
[398472907,1765710638470,-541.54704511,0.00017643,2]
[398472908,1765710638484,-676.35935915,0.00017643,2]
[398472909,1765710638506,-269.31479425,0.00017643,2]
[398472910,1765710638518,-1067.20944275,0.00017643,2]
[398472911,1765710638532,-420.01175576,0.00017643,2]
[398472912,1765710638544,-578.79698969,0.00017643,2]
[398472913,1765710638558,-908.42420882,0.00017643,2]
[398472914,1765710638569,-1487.22119851,0.00017643,2]
[398472915,1765710638580,-1487.22119851,0.00017643,2]
[398472916,1765710638591,-1487.22119851,0.00017643,2]
[398472917,1765710638604,-500.0,0.00017643,2]
[398472918,1765710638618,-500.0,0.00017643,2]
[398472919,1765710638630,-265.97635289,0.00017643,2]
[398472920,1765710640355,-234.02364711,0.00017643,2]
[398472921,1765710640365,-500.0,0.00017643,2]
[398472922,1765710640374,-500.0,0.00017643,2]
[398472923,1765710640383,-500.0,0.00017643,2]
[398472924,1765710640393,-500.0,0.00017643,2]
[398472925,1765710640403,-500.0,0.00017643,2]
[398472926,1765710640412,-449.08466402,0.00017643,2]
[398472927,1765710640422,-500.0,0.00017643,2]
[398472928,1765710640431,-500.0,0.00017643,2]
[398472929,1765710640440,-500.0,0.00017643,2]
[398472930,1765710640449,-121.26274284,0.00017643,2]
[398472931,1765710640462,-378.73725716,0.00017643,2]
[398472932,1765710640471,-500.0,0.00017643,2]
[398472933,1765710640482,-1569.84459844,0.00017643,2]
[398472934,1765710640491,-1569.84459844,0.00017643,2]
[398472935,1765710640500,-1569.84459844,0.00017643,2]
[398472936,1765710640510,-1569.84459844,0.00017643,2]
[398472937,1765710640520,-1569.84459844,0.00017643,2]
[398472938,1765710640529,-1569.84459844,0.00017643,2]
[398472939,1765710640539,-1569.84459844,0.00017643,2]
[398472940,1765710640548,-1569.84459844,0.00017643,2]
[398472941,1765710640558,-1569.84459841,0.00017643,2]
[398472942,1765710640567,-24737.72582322,0.00017648,2]
[398472943,1765710641186,-260.76561014,0.00017648,2]
[398472944,1765710641198,-350.0842972,0.00017648,2]
[398472945,1765710641210,-351.77987875,0.00017648,2]
[398472972,1765710646168,-3645.85780633,0.00017648,2]
[398472973,1765710718634,150.0,8.984e-05,2]
[398472974,1765710719067,150.0,9.412e-05,2]
[398472975,1765710719483,169.13,9.839e-05,2]
[398472976,1765710719896,225.51,0.00010267,2]
[398472977,1765710720328,281.88,0.00010695,2]
[398472978,1765710720729,338.26,0.00011123,2]
[398472979,1765710721209,394.64,0.00011551,2]
[398472980,1765710721625,451.01,0.00011978,2]
[398472981,1765710722036,507.39,0.00012406,2]
[398472982,1765710722448,563.77,0.00012834,2]
[398472985,1765710804182,150.0,8.999e-05,2]
[398472986,1765710804631,150.0,9.428e-05,2]
[398472987,1765710805051,159.3,9.857e-05,2]
[398472988,1765710805477,212.4,0.00010285,2]
[398472989,1765710805883,265.5,0.00010714,2]
[398472990,1765710806292,318.59,0.00011142,2]
[398472991,1765710806730,371.69,0.00011571,2]
[398472992,1765710807143,424.79,0.00011999,2]
[398472993,1765710807996,477.89,0.00012428,2]
[398472994,1765710808150,530.99,0.00012856,2]
[398473006,1765710879590,150.0,0.00011394,2]
[398473007,1765710879988,150.0,0.00011936,2]
[398473008,1765710881082,150.0,0.00012479,2]
[398473009,1765710881248,150.0,0.00013021,2]
[398473010,1765710881405,150.0,0.00013564,2]
[398473011,1765710881644,150.0,0.00014106,2]
[398473012,1765710882039,150.0,0.00014649,2]
[398473014,1765711227499,948.0,0.00015,2]
[398473046,1765711832331,-466.12813108,0.000163,2]
[398473047,1765711832387,-533.87186892,0.000163,2]
[398473048,1765711832397,-201.4401384,0.00016634,2]
[398473049,1765711832414,-300.0,0.00017632,2]
[398473050,1765711832431,-56.27711521,0.00017632,2]
[398473051,1765711832444,-243.72288479,0.00017632,2]
[398473052,1765711832454,-300.0,0.00017632,2]
[398473053,1765711832466,-300.0,0.00017632,2]
[398473054,1765711832475,-195.11431325,0.00017632,2]
[398473055,1765711832488,-1004.88568675,0.00017632,2]
[398473056,1765711832498,-1200.0,0.00017633,2]
[398473057,1765711832507,-1669.19586555,0.00017638,2]
[398473098,1765711838486,-222.75549764,0.00017632,2]
[398473100,1765711838498,-50.05717451,0.00017632,2]
[398473106,1765711838540,-449.94282549,0.00017632,2]
[398473108,1765711838550,-50.05717451,0.00017632,2]
[398473317,1765711840809,-449.94282549,0.00017632,2]
[398473319,1765711840818,-500.0,0.00017632,2]
[398473321,1765711840827,-500.0,0.00017632,2]
[398473323,1765711840837,-500.0,0.00017632,2]
[398473325,1765711840846,-500.0,0.00017632,2]
[398473327,1765711840855,-500.0,0.00017632,2]
[398473329,1765711840864,-500.0,0.00017632,2]
[398473331,1765711840873,-500.0,0.00017632,2]
[398473333,1765711840881,-500.0,0.00017632,2]
[398473335,1765711840890,-288.66457598,0.00017632,2]
[398473337,1765711840902,-211.33542402,0.00017632,2]
[398473339,1765711840911,-500.0,0.00017632,2]
[398473341,1765711840920,-500.0,0.00017632,2]
[398473343,1765711840929,-500.0,0.00017632,2]
[398473345,1765711840938,-217.58412695,0.00017632,2]
[398473347,1765711840947,-260.57148075,0.00017632,2]
[398473441,1765711843604,-239.42851925,0.00017632,2]
[398473442,1765711843614,-500.0,0.00017632,2]
[398473443,1765711843623,-500.0,0.00017632,2]
[398473444,1765711843632,-500.0,0.00017632,2]
[398473445,1765711843642,-500.0,0.00017632,2]
[398473446,1765711843651,-500.0,0.00017632,2]
[398473447,1765711843660,-500.0,0.00017632,2]
[398473448,1765711843669,-500.0,0.00017632,2]
[398473449,1765711843678,-500.0,0.00017632,2]
[398473450,1765711843687,-235.57148075,0.00017632,2]
[398473451,1765711846403,-264.42851925,0.00017632,2]
[398473452,1765711846413,-102.4889655,0.00017632,2]
[398473453,1765711846424,-397.5110345,0.00017632,2]
[398473454,1765711846434,-500.0,0.00017632,2]
[398473455,1765711846448,-500.0,0.00017632,2]
[398473456,1765711846457,-500.0,0.00017632,2]
[398473457,1765711846467,-500.0,0.00017632,2]
[398473458,1765711846477,-544.9084664,0.00017632,2]
[398473459,1765711846486,-500.0,0.00017632,2]
[398473460,1765711846496,-500.0,0.00017632,2]
[398473461,1765711846505,-257.09065858,0.00017632,2]
[398473462,1765711846515,-500.0,0.00017632,2]
[398473463,1765711846526,-500.0,0.00017632,2]
[398473464,1765711846536,-500.0,0.00017632,2]
[398473465,1765711846545,-500.0,0.00017632,2]
[398473466,1765711846554,-500.0,0.00017632,2]
[398473467,1765711846563,-500.0,0.00017632,2]
[398473468,1765711846572,-500.0,0.00017632,2]
[398473469,1765711846581,-500.0,0.00017632,2]
[398473470,1765711846590,-500.0,0.00017632,2]
[398473471,1765711846600,-500.0,0.00017632,2]
[398473472,1765711846609,-500.0,0.00017632,2]
[398473473,1765711846618,-500.0,0.00017632,2]
[398473474,1765711846627,-500.0,0.00017632,2]
[398473475,1765711846636,-500.0,0.00017632,2]
[398473476,1765711846645,-500.0,0.00017632,2]
[398473477,1765711846654,-500.0,0.00017632,2]
[398473478,1765711846663,-500.0,0.00017632,2]
[398473479,1765711846672,-500.0,0.00017632,2]
[398473480,1765711846680,-480.48984046,0.00017638,2]
[398473481,1765711846699,-524.92172426,0.00017638,2]
[398473482,1765711846708,-191.18029365,0.00017644,2]
[398473483,1765711846717,-469.72559496,0.00017645,2]
[398473496,1765711905173,150.0,0.00010365,2]
[398473497,1765711905628,161.65,0.00010859,2]
[398473498,1765711906054,242.48,0.00011352,2]
[398473499,1765711906462,323.31,0.00011846,2]
[398473500,1765711906867,404.13,0.0001234,2]
[398473501,1765711907833,484.96,0.00012833,2]
[398473502,1765711908218,565.79,0.00013327,2]
[398473503,1765711908653,646.61,0.0001382,2]
[398473504,1765711909059,727.44,0.00014314,2]
[398473505,1765711909480,808.27,0.00014808,2]
[398473506,1765711940254,159.83,0.000134,2]
[398473507,1765711940559,159.83,0.000136,2]
[398473508,1765711940843,106.56,0.000137,2]
[398473509,1765711940866,53.27,0.000137,2]
[398473510,1765711941132,159.83,0.000139,2]
[398473511,1765711941422,159.83,0.00014,2]
[398473512,1765711981990,150.0,0.00010392,2]
[398473513,1765711982425,150.0,0.00010887,2]
[398473514,1765711982896,150.0,0.00011382,2]
[398473515,1765711983551,150.0,0.00011877,2]
[398473516,1765711983767,150.0,0.00012372,2]
[398473517,1765711984220,150.0,0.00012866,2]
[398473518,1765711984637,163.57,0.00013361,2]
[398473519,1765711985074,186.94,0.00013856,2]
[398473520,1765711985501,210.31,0.00014351,2]
[398473521,1765711985912,233.67,0.00014846,2]
[398473522,1765712049875,150.0,0.00010392,2]
[398473523,1765712050292,150.0,0.00010887,2]
[398473531,1765712283570,298.99,9.99e-05,2]
[398473533,1765712363848,500.0,0.00013273,2]
[398473534,1765712403951,500.0,0.00013699,2]
[398473535,1765712407163,500.0,0.00013699,2]
[398473536,1765712410438,300.0,0.00013673,2]
[398473537,1765712412407,500.0,0.00013273,2]
[398473538,1765712412466,1000.0,0.00013821,2]
[398473539,1765712412841,500.0,0.00013273,2]
[398473540,1765712412899,1000.0,0.00013821,2]
[398473541,1765712414967,500.0,0.00013273,2]
[398473542,1765712415010,1000.0,0.00013821,2]
[398473543,1765712416381,284.09403884,0.00013699,2]
[398473544,1765712417996,500.0,0.00013273,2]
[398473545,1765712418027,1000.0,0.00013821,2]
[398473546,1765712419131,498.29288736,0.00013273,2]
[398473547,1765712442589,181.834418,0.00013699,2]
[398473548,1765712463872,500.0,0.00013273,2]
[398473549,1765712463924,854.19730827,0.00013821,2]
[398473550,1765712463955,381.59134753,0.00013699,2]
[398473551,1765712463985,118.40865247,0.00013699,2]
[398473552,1765712465955,500.0,0.00013699,2]
[398473554,1765712468315,500.0,0.00013273,2]
[398473555,1765712468359,1000.0,0.00013821,2]
[398473556,1765712473185,500.0,0.00013699,2]
[398473557,1765712477840,500.0,0.00013699,2]
[398473558,1765712480967,500.0,0.00013273,2]
[398473559,1765712481011,1000.0,0.00013821,2]
[398473560,1765712482749,548.50020923,0.00013273,2]
[398473561,1765712523769,500.0,0.00013699,2]
[398473562,1765712524118,500.0,0.00013699,2]
[398473563,1765712524145,500.0,0.00013273,2]
[398473564,1765712524170,1000.0,0.00013821,2]
[398473565,1765712550413,800.0,0.00015,30]
[398473566,1765712583608,500.0,0.00013699,2]
[398473567,1765712583644,500.0,0.00013699,2]
[398473568,1765712586394,193.28406519,0.00013273,2]
[398473569,1765712586421,339.81707311,0.00013821,2]
[398473570,1765712586443,660.18292689,0.00013821,2]
[398473571,1765712586477,500.0,0.00013273,2]
[398473577,1765712644247,500.0,0.00013273,2]
[398473578,1765712644282,500.0,0.00013699,2]
[398473579,1765712644306,981.81005342,0.00013821,2]
[398473580,1765712648613,567.79399869,0.00013699,2]
[398473581,1765712648669,500.0,0.00013273,2]
[398473582,1765712648774,1000.0,0.00013821,2]
[398473583,1765712706948,500.0,0.00013699,2]
[398473586,1765712763303,495.11861338,0.00013699,2]
[398473587,1765712763369,500.0,0.00013273,2]
[398473588,1765712763431,1000.0,0.00013821,2]
[398473589,1765712763609,500.0,0.00013699,2]
[398473590,1765712764539,500.0,0.00013699,2]
[398473592,1765712767765,500.0,0.00013273,2]
[398473593,1765712767886,795.10440762,0.00013821,2]
[398473594,1765712767908,204.89559238,0.00013821,2]
[398473595,1765712816722,150.0,9.083e-05,2]
[398473596,1765712817207,150.0,9.516e-05,2]
[398473597,1765712817632,150.0,9.948e-05,2]
[398473598,1765712823264,465.2444435,0.00013273,2]
[398473599,1765712823387,218.01205532,0.00013699,2]
[398473604,1765712866100,-445.0,0.000165,30]
[398473605,1765712883573,500.0,0.00013273,2]
[398473606,1765712883623,1000.0,0.00013821,2]
[398473607,1765712883814,500.0,0.00013699,2]
[398473611,1765712943330,500.0,0.00013699,2]
[398473645,1765713031595,-55.0,0.000165,30]
[398473647,1765713031605,-500.0,0.000165,30]
[398473649,1765713031615,-208.03133563,0.00016886,2]
[398473650,1765713031624,-667.0,0.00016886,2]
[398473651,1765713031633,-250.0,0.000171,2]
[398473652,1765713031642,-2349.49024752,0.00017283,2]
[398473653,1765713031652,-2171.55560671,0.00017529,2]
[398473654,1765713031661,-206.97000172,0.00017531,2]
[398473655,1765713031670,-404.32150343,0.00017621,2]
[398473656,1765713031685,-149.32223464,0.00017621,2]
[398473657,1765713031695,-201.93286099,0.00017621,2]
[398473658,1765713031704,-814.4475463,0.00017621,2]
[398473659,1765713031714,-2674.60743027,0.00017621,2]
[398473660,1765713031723,-960.0,0.00017625,2]
[398473661,1765713031732,-300.0,0.00017626,2]
[398473662,1765713031741,-300.0,0.00017627,2]
[398473663,1765713031750,-300.0,0.00017627,2]
[398473664,1765713031760,-300.0,0.00017627,2]
[398473665,1765713031769,-300.0,0.00017628,2]
[398473666,1765713031778,-229.2067408,0.00017628,2]
[398473667,1765713032080,-256.98525882,0.00017628,2]
[398473668,1765713032091,-713.80800038,0.00017628,2]
[398473669,1765713032100,-337.97050434,0.00017628,2]
[398473700,1765713037635,-162.02949566,0.00017628,2]
[398473702,1765713037644,-500.0,0.00017628,2]
[398473703,1765713037654,-476.7682238,0.00017628,2]
[398473706,1765713037663,-504.77685333,0.00017628,2]
[398473708,1765713037673,-500.0,0.00017628,2]
[398473709,1765713037683,-500.0,0.00017628,2]
[398473711,1765713037693,-500.0,0.00017628,2]
[398473714,1765713037703,-500.0,0.00017628,2]
[398473716,1765713037712,-500.0,0.00017628,2]
[398473718,1765713037721,-500.0,0.00017628,2]
[398473720,1765713037730,-500.0,0.00017628,2]
[398473721,1765713037740,-500.0,0.00017628,2]
[398473723,1765713037749,-500.0,0.00017628,2]
[398473725,1765713037758,-500.0,0.00017628,2]
[398473726,1765713037768,-500.0,0.00017628,2]
[398473728,1765713037777,-500.0,0.00017628,2]
[398473730,1765713037786,-500.0,0.00017628,2]
[398473732,1765713037795,-500.0,0.00017628,2]
[398473734,1765713037804,-500.0,0.00017628,2]
[398473736,1765713037813,-500.0,0.00017628,2]
[398473738,1765713037822,-500.0,0.00017628,2]
[398473740,1765713037831,-500.0,0.00017628,2]
[398473742,1765713037840,-500.0,0.00017628,2]
[398473744,1765713037848,-500.0,0.00017628,2]
[398473746,1765713037857,-500.0,0.00017628,2]
[398473748,1765713037866,-500.0,0.00017628,2]
[398473750,1765713037875,-500.0,0.00017628,2]
[398473752,1765713037885,-500.0,0.00017628,2]
[398473755,1765713037898,-500.0,0.00017628,2]
[398473756,1765713037907,-585.03813779,0.00017628,2]
[398473759,1765713037917,-500.0,0.00017628,2]
[398473761,1765713037927,-500.0,0.00017628,2]
[398473763,1765713037937,-500.0,0.00017628,2]
[398473764,1765713037946,-500.0,0.00017628,2]
[398473766,1765713037955,-500.0,0.00017628,2]
[398473768,1765713037965,-500.0,0.00017628,2]
[398473770,1765713037975,-500.0,0.00017628,2]
[398473772,1765713037983,-500.0,0.00017628,2]
[398473774,1765713037992,-500.0,0.00017628,2]
[398473776,1765713038001,-500.0,0.00017628,2]
[398473778,1765713038010,-500.0,0.00017628,2]
[398473780,1765713038020,-500.0,0.00017628,2]
[398473782,1765713038030,-500.0,0.00017628,2]
[398473784,1765713038040,-500.0,0.00017628,2]
[398473786,1765713038049,-500.0,0.00017628,2]
[398473788,1765713038059,-500.0,0.00017628,2]
[398473791,1765713038068,-500.0,0.00017628,2]
[398473792,1765713038078,-500.0,0.00017628,2]
[398473794,1765713038088,-500.0,0.00017628,2]
[398473797,1765713038098,-500.0,0.00017628,2]
[398473799,1765713038108,-500.0,0.00017628,2]
[398473801,1765713038118,-500.0,0.00017628,2]
[398473803,1765713038127,-500.0,0.00017628,2]
[398473804,1765713038136,-500.0,0.00017628,2]
[398473806,1765713038146,-500.0,0.00017628,2]
[398473808,1765713038156,-500.0,0.00017628,2]
[398473810,1765713038165,-500.0,0.00017628,2]
[398473813,1765713038175,-500.0,0.00017628,2]
[398473815,1765713038185,-500.0,0.00017628,2]
[398473817,1765713038195,-500.0,0.00017628,2]
[398473819,1765713038204,-500.0,0.00017628,2]
[398473821,1765713038214,-500.0,0.00017628,2]
[398473823,1765713038223,-500.0,0.00017628,2]
[398473825,1765713038233,-175.70906586,0.00017628,2]
[398473827,1765713038244,-500.0,0.00017628,2]
[398473829,1765713038254,-500.0,0.00017628,2]
[398473831,1765713038265,-500.0,0.00017628,2]
[398473833,1765713038274,-500.0,0.00017628,2]
[398473835,1765713038284,-481.75841269,0.00017628,2]
[398473837,1765713038293,-500.0,0.00017628,2]
[398473839,1765713038303,-500.0,0.00017628,2]
[398473841,1765713038312,-500.0,0.00017628,2]
[398473843,1765713038322,-500.0,0.00017628,2]
[398473845,1765713038331,-500.0,0.00017628,2]
[398473847,1765713038340,-500.0,0.00017628,2]
[398473848,1765713038350,-500.0,0.00017628,2]
[398473850,1765713038359,-500.0,0.00017628,2]
[398473853,1765713038369,-500.0,0.00017628,2]
[398473854,1765713038379,-500.0,0.00017628,2]
[398473857,1765713038388,-500.0,0.00017628,2]
[398473859,1765713038397,-500.0,0.00017628,2]
[398473860,1765713038407,-500.0,0.00017628,2]
[398473862,1765713038416,-500.0,0.00017628,2]
[398473864,1765713038425,-500.0,0.00017628,2]
[398473866,1765713038434,-500.0,0.00017628,2]
[398473868,1765713038445,-500.0,0.00017633,2]
[398473870,1765713038453,-500.0,0.00017633,2]
[398473872,1765713038463,-1071.0392857,0.00017633,2]
[398473874,1765713038472,-500.0,0.00017636,2]
[398473876,1765713038481,-500.0,0.0001764,2]
[398473878,1765713038490,-500.0,0.0001764,2]
[398473880,1765713038499,-345.47256621,0.00017641,2]
[398473882,1765713038509,-500.0,0.00017644,2]
[398473884,1765713038519,-190.19619699,0.00017644,2]
[398473886,1765713038527,-151.0,0.00017645,2]
[398473888,1765713038537,-318.13658436,0.00017648,2]
[398473890,1765713038548,-197.40634203,0.0001792,2]
[398473892,1765713038557,-225.60724804,0.0001792,2]
[398473894,1765713038567,-353.871,0.0001792,2]
[398473896,1765713038576,-352.15881373,0.0001792,2]
[398473898,1765713038586,-460.0,0.00017967,2]
[398473900,1765713038596,-500.0,0.00017977,5]
[398473902,1765713038605,-39031.43046667,0.0001799,2]
[398473904,1765713038614,-246.30481243,0.00018,2]
[398473906,1765713038624,-574.12855637,0.00018169,2]
[398473908,1765713038633,-209.40437684,0.00018169,2]
[398473910,1765713038642,-2773.56790519,0.00018169,2]
[398473912,1765713038652,-300.0,0.00018175,2]
[398473914,1765713038662,-300.0,0.00018175,2]
[398473916,1765713038672,-300.0,0.00018175,2]
[398473918,1765713038682,-300.0,0.00018175,2]
[398473920,1765713038693,-300.0,0.00018175,2]
[398473922,1765713038703,-300.0,0.00018175,2]
[398473924,1765713038712,-300.0,0.00018175,2]
[398473926,1765713038722,-300.0,0.00018175,2]
[398473928,1765713038732,-300.0,0.00018175,2]
[398473931,1765713038746,-300.0,0.00018175,2]
[398473933,1765713038760,-300.0,0.00018175,2]